Cogmind - Beta 15 @@@ ROGUE MODE // 2025.10.06 @ 11:03:20 Player: shapeshifter Result: Destroyed by 06-UHF(R) with Subdweller Laser Performance ------------- Evolutions (0) 0 Regions Visited (3) 600 Robots Destroyed (15) 75 Value Destroyed (346) 346 Prototype IDs (0) 0 Alien Tech Used (0) 0 Bonus (0) 0 TOTAL SCORE: 1021 Bonus ------- None Cogmind --------- Core Integrity 0/250 Matter 290/300 Energy 197/200 System Corruption 0% Temperature Cool (32) Movement Rolling (110) Ox2 Location -10/Subcaves Parts ------- > --- POWER (1) -------- Subdweller Power Source > --- PROPULSION (2) --- Wheel > --- UTILITY (2) ------ Large Storage Unit > --- WEAPON (2) ------- Subdweller Laser > --- INVENTORY (15) --- Light Ion Engine Aluminum Leg Aluminum Leg Disposable Heat Sink Improved Terrain Scanner Scrap Shield Subdweller Beam Cannon Subdweller Machine Gun Rocket Launcher Peak State ------------ > --- POWER ------------ Ion Engine > --- PROPULSION ------- Subdweller Monowheel Subdweller Monowheel > --- UTILITY ---------- Large Storage Unit Seismic Detector > --- WEAPON ----------- Subdweller Laser Subdweller Machine Gun > --- INVENTORY -------- Light Ion Engine Subdweller Power Source Aluminum Leg Aluminum Leg Wheel Subdweller Monowheel Disposable Heat Sink Improved Terrain Scanner Subdweller Laser Subdweller Beam Cannon Subdweller Machine Gun Rocket Launcher [Rating: 13] Favorites ----------- Power Ion Engine Engine Ion Engine Propulsion Light Treads Treads Light Treads Wheel Subdweller Monowheel Utility Seismic Detector Device Seismic Detector Storage Large Storage Unit Weapon Light Assault Rifle Energy Gun Subdweller Laser Ballistic Gun Light Assault Rifle Build | -11 -10 -10 -10 ------- Run | Yrd Mat Min Sub Slots Evolved . | . . . . Power . | . . . . Propulsion . | . . . . Utility . | . . . . Weapon . | . . . . Parts Attached 20 | 9 2 . 9 Power 2 | 1 . . 1 Engine 2 | 1 . . 1 Core . | . . . . Reactor . | . . . . Propulsion 7 | 3 . . 4 Treads 2 | 2 . . . Leg . | . . . . Wheel 5 | 1 . . 4 Hover . | . . . . Flight . | . . . . Utility 5 | 3 2 . . Device 2 | 2 . . . Storage 3 | 1 2 . . Processor . | . . . . Hackware . | . . . . Protection . | . . . . Artifact . | . . . . Weapon 6 | 2 . . 4 Energy Gun 3 | . . . 3 Energy Cannon . | . . . . Ballistic Gun 3 | 2 . . 1 Ballistic Cannon . | . . . . Launcher . | . . . . Special Weapon . | . . . . Impact Weapon . | . . . . Slashing Weapon . | . . . . Piercing Weapon . | . . . . Special Melee Weapon . | . . . . Unidentified Prototypes . | . . . . Parts Lost 9 | . . . 9 Power 1 | . . . 1 Propulsion 3 | . . . 3 Utility 1 | . . . 1 Weapon 4 | . . . 4 Highest Loss Streak 5 | . . . 5 To Critical Strikes . | . . . . Average Backups 8 | 5 7 7 10 Power 1 | . 1 1 1 Propulsion 3 | 3 4 4 3 Utility 1 | . 1 1 1 Weapon 2 | . 1 1 3 Tool/Special . | . . . . Unused Backups 10 | 1 . . 9 Power 2 | 1 . . 1 Propulsion 2 | . . . 2 Utility 2 | . . . 2 Weapon 4 | . . . 4 Tool/Special . | . . . . Average Slot Usage (%) 98 | . 100 100 97 Engine 13 | . 14 14 13 Treads 16 | . 28 28 7 Wheel 11 | . . . 20 Device 12 | . 14 14 12 Storage 14 | . 14 14 14 Energy Gun 5 | . . . 10 Ballistic Gun 22 | . 28 28 17 Peak Build Rating 13 | 9 8 8 13 Average Rating 8 | 4 7 7 10 On Entrance 5 | . 7 7 8 Naked Turns . | . . . . Heaviest Build 34 | 13 28 28 34 Greatest Support 40 | 40 40 40 40 Greatest Overweight (x) 1 | . . . 1 Average Overweight (x) . | . . . . Largest Inventory Capacity 15 | 8 15 15 15 Average Capacity 13 | 7 11 15 15 Most Carried 14 | 8 8 8 14 Average Carried 8 | 5 7 7 10 Final Capacity 15 | 8 15 15 15 Final Carried 10 | 7 7 8 10 Class Distribution -------------------- 73% | Mutant 26% | Scavenger-Mutant Dominant Class ---------------- Mutant | -10/Materials Mutant | -10/Mines Scavenger-Mutant | -10/Subcaves Resources | -11 -10 -10 -10 ----------- Run | Yrd Mat Min Sub Matter Collected 486 | 235 132 . 119 Remotely . | . . . . Salvage Created 485 | 36 200 . 249 Parts 42 | 5 21 . 16 Haulers Intercepted 1 | . 1 . . Recyclers Shooed . | . . . . Parts Field Recycled . | . . . . Retrieved Matter . | . . . . Parts Self-Destructed 6 | . . . 6 Prevented . | . . . . Kills | -11 -10 -10 -10 ------- Run | Yrd Mat Min Sub Combat Hostiles Destroyed 10 | . 5 . 5 Guns 10 | . 5 . 5 Classes Destroyed 7 | 1 5 . 1 Tunneler 2 | 2 . . . Hauler 1 | . 1 . . Operator 1 | . 1 . . Watcher 1 | . 1 . . Swarmer 3 | . 3 . . Grunt 2 | . 2 . . Subdweller 5 | . . . 5 Best Kill Streak 3 | 1 3 . 1 Combat Bots Only 3 | . 3 . 1 Max Kills in Single Turn 1 | 1 1 . 1 Gunslinging . | . . . . Exploded . | . . . . Melee . | . . . . Uniques/NPCs Destroyed . | . . . . Combat | -11 -10 -10 -10 -------- Run | Yrd Mat Min Sub Hostile Shots Fired 95 | . 51 . 44 Missed 20 | . 15 . 5 Hits 75 | . 36 . 39 Projectile 75 | . 36 . 39 Critical Strikes 3 | . 1 . 2 Damage Taken 1148 | . 324 . 824 Core 269 | . 74 . 195 Absorbed by Shields . | . . . . Core Remaining (%) 100 | 100 . . . Volleys Fired 71 | 7 32 1 31 Largest 2 | 2 2 2 2 Hottest 120 | 40 40 40 120 Shots Fired 138 | 14 64 2 58 Gun 138 | 14 64 2 58 Cannon . | . . . . Launcher . | . . . . Special . | . . . . Kinetic 121 | 14 64 2 41 Thermal 17 | . . . 17 Explosive . | . . . . Electromagnetic . | . . . . Robot Hit Streak 17 | 3 10 3 17 Robot Miss Streak 5 | 5 4 . 2 Penetration Max . | . . . . Secondary Targets 1 | . . . 1 Max Gunslinging Chain 1 | . . . 1 Shots Hit Robots 93 | 6 40 2 45 Core Hits 29 | 4 14 . 11 Critical Kills 1 | . . . 1 Critical Parts Destroyed . | . . . . Critical Strikes 1 | . . . 1 Destroy 1 | . . . 1 Melee Attacks . | . . . . Impact . | . . . . Slashing . | . . . . Piercing . | . . . . Sneak Attacks . | . . . . Combat Hostiles . | . . . . Follow-up Attacks . | . . . . Damage Inflicted 988 | 45 324 16 603 Guns 988 | 45 324 16 603 Cannons . | . . . . Explosions . | . . . . Melee . | . . . . Ramming . | . . . . Kinetic 738 | 45 324 16 353 Thermal 250 | . . . 250 Explosive . | . . . . Electromagnetic . | . . . . Impact . | . . . . Slashing . | . . . . Piercing . | . . . . Highest Corruption . | . . . . Average Corruption . | . . . . Corruption Purged . | . . . . Corruption Blocked . | . . . . Overload Shots . | . . . . Overflow Damage . | . . . . Projectiles . | . . . . Explosions . | . . . . Melee . | . . . . Knockbacks . | . . . . Impact . | . . . . Kinetic . | . . . . Secondary . | . . . . Self-Inflicted Damage . | . . . . Shots . | . . . . Rammed . | . . . . Targets Rammed . | . . . . Kicked . | . . . . Crushed . | . . . . Highest Temperature 30 | . 24 . 30 Average Temperature 11 | . 9 . 18 Received Heat Transfer 144 | . 72 . 72 Siege Activations . | . . . . Martial Activations . | . . . . Shielding Activations . | . . . . Robots Disrupted . | . . . . Combat Hostiles . | . . . . Robots Corrupted . | . . . . Combat Hostiles . | . . . . Parts Fried . | . . . . Impact Corruptions . | . . . . Robots Melted . | . . . . Combat Hostiles . | . . . . Parts Melted . | . . . . Heat Transferred 300 | . . . 300 Parts Sabotaged . | . . . . Parts Stolen . | . . . . Parts Stripped . | . . . . Power Chain Reactions . | . . . . Alert | -11 -10 -10 -10 ------- Run | Yrd Mat Min Sub Maximum Alert Level . | . . . . Low Security (%) 100 | 100 100 100 . Level 1 . | . . . . Level 2 . | . . . . Level 3 . | . . . . Level 4 . | . . . . Level 5 . | . . . . High Security . | . . . . Max Security . | . . . . Peak Influence 65 | 5 65 1 . Initial 1 | . . 1 . Average 8 | . 15 . . Influence Increases 168 | 10 158 . . Destroy 0b10 Robot/C 100 | . 100 . . Destroy 0b10 Robot/NC 25 | 10 15 . . Destroy Leader 24 | . 24 . . Successful Hack 4 | . 4 . . Lose Combat Pursuer 15 | . 15 . . Influence Decreases 168 | 10 152 6 . Entered New Map 5 | . . 5 . Time Decay 163 | 10 152 1 . Squads Dispatched 2 | . 2 . . Investigation . | . . . . Extermination . | . . . . Reinforcement 2 | . 2 . . Assault . | . . . . Garrison . | . . . . Intercept . | . . . . Searches Triggered . | . . . . Construction Impeded . | . . . . Haulers Reinforced . | . . . . Active Scanning Responses . | . . . . Cargo Convoy Interrupts . | . . . . Stealth | -11 -10 -10 -10 --------- Run | Yrd Mat Min Sub Distress Signals . | . . . . Communications Jammed . | . . . . Distress Signals . | . . . . Times Spotted 19 | . 12 . 7 Peak Tracking Total 3 | . 3 . 2 Tactical Retreats 1 | . 1 . . Traps | -11 -10 -10 -10 ------- Run | Yrd Mat Min Sub Traps Triggered . | . . . . Indirectly . | . . . . Trap Hack Attempts . | . . . . Triggered . | . . . . Disarmed . | . . . . Reprogrammed . | . . . . Reused . | . . . . Traps Extracted . | . . . . Installed . | . . . . Triggered . | . . . . Machines | -11 -10 -10 -10 ---------- Run | Yrd Mat Min Sub Machines Disabled . | . . . . Max in Single Turn . | . . . . Machines Repaired . | . . . . Machines Dismantled . | . . . . Machines Sabotaged . | . . . . Overloaded Fab Kills . | . . . . Hacking | -11 -10 -10 -10 --------- Run | Yrd Mat Min Sub Machines Accessed 5 | . 2 . 3 Terminals 2 | . 2 . . Fabricators . | . . . . Repair Stations . | . . . . Recycling Units . | . . . . Scanalyzers . | . . . . Garrison Access . | . . . . Total Hacks 12 | . 6 . 6 Successful 8 | . 2 . 6 Failed 4 | . 4 . . Catastrophic . | . . . . Database Lockouts . | . . . . Manual 4 | . 4 . . Terminals 6 | . 6 . . Fabricators . | . . . . Repair Stations . | . . . . Recycling Units . | . . . . Scanalyzers . | . . . . Garrison Access . | . . . . Terminal Hacks 6 | . . . 6 Record 4 | . . . 4 Open Door 1 | . . . 1 Release Object 1 | . . . 1 Fabricator Hacks . | . . . . Repair Station Hacks . | . . . . Recycling Unit Hacks . | . . . . Scanalyzer . | . . . . Garrison Access Hacks . | . . . . Unauthorized Hacks 2 | . 2 . . Terminals 2 | . 2 . . Skim 2 | . 2 . . Fabricators . | . . . . Repair Stations . | . . . . Recycling Units . | . . . . Scanalyzers . | . . . . Garrison Access . | . . . . Data Cores Recovered . | . . . . Used . | . . . . Hacking Detections 2 | . 2 . . Full Trace Events . | . . . . Feedback Events . | . . . . Feedback Blocked . | . . . . Robot Schematics Acquired . | . . . . Robots Built . | . . . . Authchips . | . . . . Time . | . . . . Total Robot Build Rating . | . . . . Part Schematics Acquired . | . . . . Parts Built . | . . . . Authchips . | . . . . Time . | . . . . Total Part Build Rating . | . . . . Parts Repaired . | . . . . Time . | . . . . Parts Recycled . | . . . . Recycled Matter . | . . . . Retrieved Matter . | . . . . Retrieved Components . | . . . . Parts Scanalyzed . | . . . . Part Schematics Acquired . | . . . . Parts Damaged . | . . . . Bothacking | -11 -10 -10 -10 ------------ Run | Yrd Mat Min Sub Used RIF Installer . | . . . . Robots Hacked . | . . . . Non-combat . | . . . . Combat . | . . . . Robot Hacks Applied . | . . . . Relay Couplers Released . | . . . . Fabnet Peak Effective % . | . . . . Robots Rewired . | . . . . Allies Hacked . | . . . . Hacks Repelled . | . . . . Allies | -11 -10 -10 -10 -------- Run | Yrd Mat Min Sub Total Allies . | . . . . Largest Group . | . . . . Highest-Rated Group . | . . . . Highest-Rated Ally . | . . . . Total Orders . | . . . . Ally Attacks . | . . . . Total Damage . | . . . . Kills . | . . . . Allies Corrupted . | . . . . Allies Melted . | . . . . Intel | -11 -10 -10 -10 ------- Run | Yrd Mat Min Sub Active Infowar (turns) 1805 | 17 570 301 917 Terrain 1 | 1 . . . Seismic 1804 | 16 570 301 917 Robot Analysis Total . | . . . . Derelict Logs Recovered 2 | . . . 2 Drone Launches . | . . . . Drone Recoveries . | . . . . Exploration | -11 -10 -10 -10 ------------- Run | Yrd Mat Min Sub Turns Passed 2085 | 159 570 301 1055 Spaces Moved 1295 | 91 300 103 801 Core 23 | 23 . . . Treads 617 | 64 300 103 150 Legs . | . . . . Wheels 655 | 4 . . 651 Hover . | . . . . Flight . | . . . . Fastest Speed 50 | 50 160 160 95 Average Speed 131 | 128 160 160 117 Slowest Speed 240 | 160 160 160 240 Overloaded Moves . | . . . . Propulsion Burnouts . | . . . . Robots Hopped . | . . . . Potential Cave-ins . | . . . . Cave-ins Triggered . | . . . . Exploration Rate (%) 34 | 4 56 25 54 Regions Visited 3 Branch Regions 2 Pre-discovered Areas . | . . . . Known Exits Taken . | . . . . Unknown Exits Taken 3 | 1 1 1 . Scrap Searched . | . . . . Spaces Dug . | . . . . Terrain Destroyed . | . . . . Melee . | . . . . Projectile . | . . . . AOE . | . . . . Terrain Rammed . | . . . . Walls Destroyed . | . . . . Machines Disabled . | . . . . Actions | -11 -10 -10 -10 --------- Run | Yrd Mat Min Sub Total 1561 | 121 339 238 863 Wait 140 | . 2 134 4 Move 1292 | 90 299 102 801 Hop . | . . . . Pick Up 29 | 14 2 1 12 Fast Attach 1 | 1 . . . Attach 13 | 6 . . 7 Detach . | . . . . Swap 7 | 2 2 . 3 Drop 8 | 1 2 . 5 Fire 71 | 7 32 1 31 Melee . | . . . . Ram . | . . . . Kick . | . . . . Crush . | . . . . Escape Stasis . | . . . . Rewire . | . . . . Trap . | . . . . Miscellaneous . | . . . . Route ------- -11/Scrapyard -10/Materials (discovered 2 exits: [*Mat] / [*Min]) -10/Mines -10/Subcaves (discovered 1 exit: [*Scr]) History --------- Turn | Location | Event 8 | -11/Scrapyard | Discovered new exit (range 14) 160 | -11/Scrapyard | Entered Materials 289 | -10/Materials | Discovered new exit (range 16) 309 | -10/Materials | Build established: Mutant 505 | -10/Materials | Discovered new exit (range 16) 730 | -10/Materials | Entered Mines 755 | -10/Mines | Received a Rocket Launcher from a helpful Derelict 1017 | -10/Mines | Discovered new exit (range 10) 1031 | -10/Mines | Entered Subcaves 1032 | -10/Subcaves | Approached by a straggling Scientist 1223 | -10/Subcaves | Visited Clippyterm 1228 | -10/Subcaves | Learned Factory trap positions 1414 | -10/Subcaves | Core integrity fell below 50% 1545 | -10/Subcaves | Scientist uncovered a shortcut to Scraptown 1598 | -10/Subcaves | Learned Materials security intel 1702 | -10/Subcaves | Build established: Scavenger-Mutant 1833 | -10/Subcaves | Learned Materials emergency access door positions 1951 | -10/Subcaves | Core integrity fell below 20% 1998 | -10/Subcaves | Lost 5 parts (1p1n1u2w) 2086 | -10/Subcaves | Destroyed by 06-UHF(R) with Subdweller Laser Last Messages --------------- 01739_ Sub. Monowheel shoots sparks and powers down. 01741_ Dropped Broken Sub. Monowheel. 01833_ Acquired derelict log, extracted data. Data stored: Materials emergency access points. 01861_ Acquired Scrap Shield. 01911_ Acquired Sub. Laser. 01941_ CV-ASS(R) destroyed. 01941_ Switching to secondary target: EU-RJ4(R). 01948_ Seismic Detector destroyed. 01955_ Ion Engine destroyed. 01956_ IX-MOC(z): "She is not going to be happy we haven't found any suitable candidates yet." 01960_ EU-RJ4(R) affixes Scrap Shield Fragment to Scrap Shield. 01961_ Sub. Machine Gun destroyed. 01965_ Sub. Laser destroyed. 01967_ Sub. Monowheel destroyed. 01967_ EU-RJ4(R) destroyed. 01973_ Acquired 21 matter. 02080_ Sub. Monowheel destroyed. 02084_ Sub. Laser destroyed. Map ----- +----------------------------------------------------+ | ??????????????????????## # ## | | ???????????????????????## ##### ## | | ????????????????????????# ####???## ### | | ????????????????????????# ##???????#####?# | | ???????????????????????## ##??????????????? | | ???????????????????????# ##???????????????? | | ???????????????????????# #### ##????????????????? | | ???????????????????????##???# #?????????????????? | | ??????????????????????????### ##????????????????? | | ?????????????????????????## ##???????????????? | | ?????????????????????????# ##??????????????? | | ????????????????????????## #??????????????? | | ??????????????##????????# #??????????????? | | ?????????????## #??????## ### ##??????????????? | | ?????????????# ??????# ### #???????????????? | | ?????????????# ##????# ## #???????????????? | | ??????????????# ##???# ## ##???????????????? | | ??????????????# ##### #???????????????? | | ??????????????# ## ##???????????????? | | ??????????????## #????????????####? | | ???????????????# ############## #? | | ???????????????# # # ## ## #? | | ???????????????# #? | | ???????????????##### ##? | | ???????????????????## ## # ##? | | ????????????????????#### @####### ## %#? | | ??????????????????????## ##??## ##? | | ??????????????#???????#R ## #######?? | | ??????????##### ????# R # ## ##??????? | | ??????????# ### ##### ### ##?????? | | ????????? #???## #?# #?????? | | ???????????????# #????# ?# #?????? | | ???????????????## * #????## #### ##????? | | ????????????????# #?????## ###??# ###??? | | ???????????????# #??????## #???## #### | | ????????????? ########???###?####### ## | | ??????????? #???????????# ##### ## ### | | ??????????? ?????????????# ## | | ??????????? ????????####### | | ????????????# ?????????# # | | ????????????????????????# #### | | ????????????????????????# #### | | ???????????????????????## # # ### | | ??????????????????###### #######?# | | ?????????????????## #??????### | | ?????????????????# ##????????## | | ?????????????????### # ## #??????????###### | | ???????????????????########???????????????## ## # | | ???????????????????????????????????????????####### | | ?????????????????????????????????????????????????? | +----------------------------------------------------+ Best States ------------- Heat Dissipation 25 Energy Generation 15 Energy Capacity 250 Matter Stores 300 Matter Capacity 300 Sight Range 16 Terrain Scan Density 10 Evasion (%) 50 Recoil Reduction 2 Item Schematics ----------------- None Robot Schematics ------------------ None Fabricated ------------ Nothing Repaired ---------- Nothing Alien Tech Used ----------------- None Achievements -------------- None Challenges ------------ None Game ------ Seed UltimateAutogunAutobeam Manual? 0 Play Time 00:10:39 Cumulative 359.6 hours Start 2025.10.06 @ 10:54:35 End 2025.10.06 @ 11:03:20 Sessions 2 Manual Loads 0 Difficulty Rogue Special Mode None Game No. 471 Rogue 471 Adventurer 0 Explorer 0 Win Type - Total 11 Types 6/0/1/2/1/0/1/0/0/0 Lore% 87 Gallery% 83 Achievement% 70 Wizard Run 0 Options --------- Layout 0 ASCII 0 Keyboard 0 Movement Mouse Keybinds 0 Fullscreen 1 Font 18/X11 Map View 76x50 Zoom Use 0% Tactical HUD 1 Map Filters NONE Filters NONE Steam 1 RUN: 690929f9-e51f-4752-b65a-b834d45c2460